[Event "Titled Tuesday Blitz July 05 Late 2022"]
[White "Curtis, John"]
[Black "Romero Ruscalleda, Josep"]
[WhiteFideId "3200256"]
[BlackFideId "2231859"]
[WhiteElo "2203"]
[BlackElo "2370"]
[Result "0-1"]
[Round "09"]
[TimeControl "180+1"]
[Date "2022.07.06"]
[WhiteClock "0:00:12"]
[BlackClock "0:00:17"]

1. e4 {[%clk 0:03:00]}  g6 {[%clk 0:03:00]} 2. d4 {[%clk 0:02:58]}  Bg7 {[%clk 0:03:01]} 3. Nf3 {[%clk 0:02:56]}  d6 {[%clk 0:03:01]} 4. c4 {[%clk 0:02:44]}  Bg4 {[%clk 0:02:59]} 5. Be2 {[%clk 0:02:39]}  Nc6 {[%clk 0:02:59]} 6. d5 {[%clk 0:02:32]}  Bxf3 {[%clk 0:02:41]} 7. Bxf3 {[%clk 0:02:24]}  Nd4 {[%clk 0:02:41]} 8. Nc3 {[%clk 0:02:15]}  c5 {[%clk 0:02:40]} 9. Qa4+ {[%clk 0:01:43]}  Qd7 {[%clk 0:02:39]} 10. Qxd7+ {[%clk 0:01:36]}  Kxd7 {[%clk 0:02:38]} 11. Bd1 {[%clk 0:01:37]}  f5 {[%clk 0:02:35]} 12. exf5 {[%clk 0:01:34]}  gxf5 {[%clk 0:02:35]} 13. Ne2 {[%clk 0:01:33]}  e5 {[%clk 0:02:28]} 14. dxe6+ {[%clk 0:01:31]}  Nxe6 {[%clk 0:02:28]} 15. Bc2 {[%clk 0:01:26]}  Ne7 {[%clk 0:02:27]} 16. O-O {[%clk 0:01:21]}  Raf8 {[%clk 0:02:25]} 17. Rb1 {[%clk 0:01:20]}  Nc6 {[%clk 0:02:25]} 18. Ba4 {[%clk 0:01:14]}  Kc7 {[%clk 0:02:20]} 19. Bxc6 {[%clk 0:01:12]}  bxc6 {[%clk 0:02:14]} 20. Nf4 {[%clk 0:01:10]}  Nd4 {[%clk 0:02:09]} 21. Nh5 {[%clk 0:01:03]}  Rf7 {[%clk 0:01:59]} 22. Nxg7 {[%clk 0:01:01]}  Rxg7 {[%clk 0:01:59]} 23. b3 {[%clk 0:00:53]}  Rhg8 {[%clk 0:01:55]} 24. g3 {[%clk 0:00:52]}  h5 {[%clk 0:01:29]} 25. Bb2 {[%clk 0:00:50]}  f4 {[%clk 0:01:15]} 26. Kh1 {[%clk 0:00:44]}  fxg3 {[%clk 0:01:08]} 27. fxg3 {[%clk 0:00:43]}  Re7 {[%clk 0:01:06]} 28. Rbd1 {[%clk 0:00:31]}  Re4 {[%clk 0:00:47]} 29. Rd2 {[%clk 0:00:21]}  h4 {[%clk 0:00:45]} 30. Bxd4 {[%clk 0:00:18]}  cxd4 {[%clk 0:00:44]} 31. gxh4 {[%clk 0:00:18]}  Rxh4 {[%clk 0:00:43]} 32. b4 {[%clk 0:00:16]}  c5 {[%clk 0:00:39]} 33. Rf7+ {[%clk 0:00:15]}  Kb6 {[%clk 0:00:35]} 34. a3 {[%clk 0:00:14]}  Rhg4 {[%clk 0:00:30]} 35. h3 {[%clk 0:00:13]}  Rg1+ {[%clk 0:00:29]} 36. Kh2 {[%clk 0:00:13]}  Ra1 {[%clk 0:00:28]} 37. Rf6 {[%clk 0:00:13]}  Kc7 {[%clk 0:00:26]} 38. Rf7+ {[%clk 0:00:13]}  Kc6 {[%clk 0:00:24]} 39. b5+ {[%clk 0:00:13]}  Kb6 {[%clk 0:00:24]} 40. Rd7 {[%clk 0:00:13]}  Rg6 {[%clk 0:00:21]} 41. Rg2 {[%clk 0:00:13]}  Rxg2+ {[%clk 0:00:18]} 42. Kxg2 {[%clk 0:00:13]}  Ra2+ {[%clk 0:00:19]} 43. Kg3 {[%clk 0:00:12]}  Rxa3+ {[%clk 0:00:19]} 44. Kg4 {[%clk 0:00:13]}  Rc3 {[%clk 0:00:18]} 45. Rxd6+ {[%clk 0:00:13]}  Ka5 {[%clk 0:00:19]} 46. Ra6+ {[%clk 0:00:12]}  Kb4 {[%clk 0:00:19]} 47. Rxa7 {[%clk 0:00:13]}  Kxc4 {[%clk 0:00:19]} 48. b6 {[%clk 0:00:14]}  Rb3 {[%clk 0:00:19]} 49. b7 {[%clk 0:00:14]}  d3 {[%clk 0:00:20]} 50. h4 {[%clk 0:00:13]}  d2 {[%clk 0:00:20]} 51. Ra1 {[%clk 0:00:13]}  Rxb7 {[%clk 0:00:18]} 52. h5 {[%clk 0:00:13]}  Kd3 {[%clk 0:00:18]} 53. h6 {[%clk 0:00:12]}  Ke2 {[%clk 0:00:18]} 54. Ra2 {[%clk 0:00:11]}  c4 {[%clk 0:00:18]} 55. Kg5 {[%clk 0:00:11]}  c3 {[%clk 0:00:17]} 56. Kg6 {[%clk 0:00:11]}  Ke1 {[%clk 0:00:16]} 57. Ra1+ {[%clk 0:00:11]}  d1=Q {[%clk 0:00:16]} 58. Rxd1+ {[%clk 0:00:10]}  Kxd1 {[%clk 0:00:17]} 59. h7 {[%clk 0:00:11]}  Rxh7 {[%clk 0:00:16]} 60. Kxh7 {[%clk 0:00:12]}  c2 {[%clk 0:00:16]} 61. Kg7 {[%clk 0:00:13]}  c1=Q {[%clk 0:00:17]} 62. Kf7 {[%clk 0:00:14]}  Qe3 {[%clk 0:00:17]} 63. Kf6 {[%clk 0:00:13]}  Qe4 {[%clk 0:00:17]} 64. Kg5 {[%clk 0:00:13]}  Ke2 {[%clk 0:00:17]} 65. Kf6 {[%clk 0:00:14]}  Qd5 {[%clk 0:00:17]} 66. Kg6 {[%clk 0:00:12]}  Kf3 {[%clk 0:00:17]} 67. Kf6 {[%clk 0:00:12]}  Kf4 {[%clk 0:00:17]} 68. Kg6 {[%clk 0:00:12]}  Qd6+ {[%clk 0:00:17]} 69. Kf7 {[%clk 0:00:12]}  Kf5 {[%clk 0:00:17]} 70. Ke8 {[%clk 0:00:12]}  Qc7 {[%clk 0:00:17]} 71. Kf8 {[%clk 0:00:12]}  Kf6 {[%clk 0:00:17]} 72. Kg8 {[%clk 0:00:12]}  Qg7# {[%clk 0:00:17]} 0-1


[Site "https://www.chess.com"]

[Event "Titled Tuesday Blitz July 05 Late 2022"]
[White "Diaz Rosas, Julio Cesar"]
[Black "Novikova, Galina"]
[WhiteFideId "5105099"]
[BlackFideId "4157095"]
[WhiteElo "2278"]
[BlackElo "1863"]
[Result "1-0"]
[Round "09"]
[TimeControl "180+1"]
[Date "2022.07.06"]
[WhiteClock "0:00:06"]
[BlackClock "0:00:01"]

1. d4 {[%clk 0:03:00]}  Nf6 {[%clk 0:02:57]} 2. c4 {[%clk 0:03:00]}  e5 {[%clk 0:02:58]} 3. dxe5 {[%clk 0:02:59]}  Ng4 {[%clk 0:02:58]} 4. Bf4 {[%clk 0:03:00]}  Nc6 {[%clk 0:02:56]} 5. Nf3 {[%clk 0:02:59]}  Bb4+ {[%clk 0:02:56]} 6. Nc3 {[%clk 0:02:59]}  Qe7 {[%clk 0:02:52]} 7. Qb3 {[%clk 0:02:36]}  f6 {[%clk 0:01:44]} 8. exf6 {[%clk 0:02:27]}  Nxf6 {[%clk 0:01:45]} 9. e3 {[%clk 0:02:22]}  O-O {[%clk 0:01:40]} 10. Bd3 {[%clk 0:02:15]}  d6 {[%clk 0:01:25]} 11. a3 {[%clk 0:02:02]}  Bxc3+ {[%clk 0:01:15]} 12. Qxc3 {[%clk 0:02:03]}  Bg4 {[%clk 0:01:15]} 13. Nd2 {[%clk 0:01:40]}  Nh5 {[%clk 0:01:04]} 14. Bg3 {[%clk 0:01:35]}  Ne5 {[%clk 0:00:59]} 15. Bxe5 {[%clk 0:01:34]}  dxe5 {[%clk 0:01:00]} 16. Ne4 {[%clk 0:01:30]}  Qh4 {[%clk 0:00:43]} 17. h3 {[%clk 0:00:57]}  Bf5 {[%clk 0:00:30]} 18. g3 {[%clk 0:00:53]}  Qe7 {[%clk 0:00:21]} 19. c5 {[%clk 0:00:46]}  Rad8 {[%clk 0:00:15]} 20. g4 {[%clk 0:00:22]}  Bxe4 {[%clk 0:00:15]} 21. Bxe4 {[%clk 0:00:21]}  Nf6 {[%clk 0:00:16]} 22. Bg2 {[%clk 0:00:18]}  c6 {[%clk 0:00:15]} 23. Rd1 {[%clk 0:00:16]}  Nd5 {[%clk 0:00:13]} 24. Qb3 {[%clk 0:00:14]}  Qf7 {[%clk 0:00:11]} 25. O-O {[%clk 0:00:14]}  Kh8 {[%clk 0:00:10]} 26. Rd3 {[%clk 0:00:13]}  e4 {[%clk 0:00:07]} 27. Rd4 {[%clk 0:00:12]}  Qf6 {[%clk 0:00:06]} 28. Rxe4 {[%clk 0:00:11]}  Qg6 {[%clk 0:00:04]} 29. Re5 {[%clk 0:00:11]}  Nf6 {[%clk 0:00:05]} 30. Re1 {[%clk 0:00:10]}  Rde8 {[%clk 0:00:05]} 31. Qc3 {[%clk 0:00:09]}  Nd5 {[%clk 0:00:04]} 32. Rxe8 {[%clk 0:00:09]}  Rxe8 {[%clk 0:00:04]} 33. Qd4 {[%clk 0:00:09]}  Nf6 {[%clk 0:00:03]} 34. e4 {[%clk 0:00:09]}  Qf7 {[%clk 0:00:04]} 35. e5 {[%clk 0:00:09]}  Nd5 {[%clk 0:00:03]} 36. Bxd5 {[%clk 0:00:10]}  cxd5 {[%clk 0:00:04]} 37. f4 {[%clk 0:00:10]}  Qe7 {[%clk 0:00:03]} 38. f5 {[%clk 0:00:10]}  Qh4 {[%clk 0:00:04]} 39. Qf2 {[%clk 0:00:06]}  Qxh3 {[%clk 0:00:04]} 40. Qg2 {[%clk 0:00:06]}  Qd3 {[%clk 0:00:04]} 41. e6 {[%clk 0:00:06]}  Qd4+ {[%clk 0:00:04]} 42. Kh2 {[%clk 0:00:06]}  Qxc5 {[%clk 0:00:04]} 43. Qg3 {[%clk 0:00:06]}  Qc2+ {[%clk 0:00:04]} 44. Kh3 {[%clk 0:00:06]}  Qxb2 {[%clk 0:00:04]} 45. Qe5 {[%clk 0:00:06]}  Qb3+ {[%clk 0:00:03]} 46. Re3 {[%clk 0:00:06]}  Qd1 {[%clk 0:00:03]} 47. f6 {[%clk 0:00:05]}  Qh1+ {[%clk 0:00:04]} 48. Kg3 {[%clk 0:00:05]}  Qg1+ {[%clk 0:00:04]} 49. Kf4 {[%clk 0:00:05]}  Qf2+ {[%clk 0:00:03]} 50. Rf3 {[%clk 0:00:05]}  Qd2+ {[%clk 0:00:03]} 51. Kg3 {[%clk 0:00:05]}  Rg8 {[%clk 0:00:01]} 52. f7 {[%clk 0:00:05]}  Rf8 {[%clk 0:00:01]} 53. e7 {[%clk 0:00:06]} 1-0


[Site "https://www.chess.com"]

[Event "Titled Tuesday Blitz July 05 Late 2022"]
[White "Domingo Nunez, Ruben"]
[Black "Janaszak, Dawid"]
[WhiteFideId "22245570"]
[BlackFideId "1119206"]
[WhiteElo "2373"]
[BlackElo "2199"]
[Result "1/2-1/2"]
[Round "09"]
[TimeControl "180+1"]
[Date "2022.07.05"]
[WhiteClock "0:00:19"]
[BlackClock "0:00:07"]

1. c4 {[%clk 0:03:00]}  Nf6 {[%clk 0:02:58]} 2. Nc3 {[%clk 0:03:01]}  g6 {[%clk 0:02:58]} 3. g3 {[%clk 0:03:00]}  Bg7 {[%clk 0:02:58]} 4. Bg2 {[%clk 0:03:01]}  O-O {[%clk 0:02:59]} 5. b3 {[%clk 0:03:00]}  c6 {[%clk 0:02:57]} 6. Bb2 {[%clk 0:03:00]}  d5 {[%clk 0:02:57]} 7. Nf3 {[%clk 0:03:01]}  d4 {[%clk 0:02:38]} 8. Nb1 {[%clk 0:03:00]}  d3 {[%clk 0:02:32]} 9. O-O {[%clk 0:03:01]}  c5 {[%clk 0:02:25]} 10. Ne5 {[%clk 0:02:33]}  dxe2 {[%clk 0:02:22]} 11. Qxe2 {[%clk 0:02:34]}  Nbd7 {[%clk 0:02:05]} 12. Nxd7 {[%clk 0:02:26]}  Qxd7 {[%clk 0:01:59]} 13. Nc3 {[%clk 0:02:26]}  Qf5 {[%clk 0:01:52]} 14. Qxe7 {[%clk 0:02:17]}  Qc2 {[%clk 0:01:45]} 15. Na4 {[%clk 0:02:08]}  Re8 {[%clk 0:01:26]} 16. Qxc5 {[%clk 0:01:57]}  Bf5 {[%clk 0:01:18]} 17. Bc3 {[%clk 0:01:00]}  b6 {[%clk 0:01:06]} 18. Qa3 {[%clk 0:00:58]}  Rad8 {[%clk 0:01:03]} 19. Qb2 {[%clk 0:00:55]}  Qxb2 {[%clk 0:00:53]} 20. Nxb2 {[%clk 0:00:56]}  Ne4 {[%clk 0:00:50]} 21. Bxg7 {[%clk 0:00:51]}  Kxg7 {[%clk 0:00:48]} 22. d3 {[%clk 0:00:45]}  Nc5 {[%clk 0:00:39]} 23. Rfe1 {[%clk 0:00:35]}  Bxd3 {[%clk 0:00:36]} 24. Rxe8 {[%clk 0:00:32]}  Rxe8 {[%clk 0:00:36]} 25. b4 {[%clk 0:00:20]}  Re2 {[%clk 0:00:31]} 26. bxc5 {[%clk 0:00:19]}  Rxb2 {[%clk 0:00:31]} 27. c6 {[%clk 0:00:20]}  Rc2 {[%clk 0:00:30]} 28. Rd1 {[%clk 0:00:18]}  Be2 {[%clk 0:00:26]} 29. Re1 {[%clk 0:00:15]}  Bxc4 {[%clk 0:00:26]} 30. h4 {[%clk 0:00:16]}  Bb5 {[%clk 0:00:26]} 31. Re7 {[%clk 0:00:13]}  Bxc6 {[%clk 0:00:20]} 32. Rc7 {[%clk 0:00:13]}  Be4 {[%clk 0:00:11]} 33. Rxa7 {[%clk 0:00:13]}  Rc1+ {[%clk 0:00:10]} 34. Kh2 {[%clk 0:00:13]}  Bxg2 {[%clk 0:00:09]} 35. Kxg2 {[%clk 0:00:14]}  Rc2 {[%clk 0:00:09]} 36. Ra6 {[%clk 0:00:14]}  Rb2 {[%clk 0:00:09]} 37. Kf3 {[%clk 0:00:14]}  h5 {[%clk 0:00:10]} 38. a4 {[%clk 0:00:15]}  Rb4 {[%clk 0:00:09]} 39. Ke3 {[%clk 0:00:15]}  Kf8 {[%clk 0:00:09]} 40. Kd3 {[%clk 0:00:15]}  Kg7 {[%clk 0:00:09]} 41. Kc3 {[%clk 0:00:15]}  Rb1 {[%clk 0:00:10]} 42. Kc2 {[%clk 0:00:15]}  Rb4 {[%clk 0:00:10]} 43. Kc3 {[%clk 0:00:16]}  Rb1 {[%clk 0:00:10]} 44. f4 {[%clk 0:00:15]}  Rg1 {[%clk 0:00:09]} 45. Rxb6 {[%clk 0:00:14]}  Rxg3+ {[%clk 0:00:10]} 46. Kb4 {[%clk 0:00:14]}  Rg4 {[%clk 0:00:11]} 47. Rc6 {[%clk 0:00:15]}  Rxh4 {[%clk 0:00:10]} 48. Rc4 {[%clk 0:00:14]}  Rh1 {[%clk 0:00:10]} 49. Kb5 {[%clk 0:00:14]}  Kf6 {[%clk 0:00:08]} 50. a5 {[%clk 0:00:15]}  Rd1 {[%clk 0:00:07]} 51. a6 {[%clk 0:00:15]}  Kf5 {[%clk 0:00:07]} 52. a7 {[%clk 0:00:15]}  Rd8 {[%clk 0:00:07]} 53. Kb6 {[%clk 0:00:15]}  Ra8 {[%clk 0:00:04]} 54. Kb7 {[%clk 0:00:13]}  Rxa7+ {[%clk 0:00:05]} 55. Kxa7 {[%clk 0:00:14]}  h4 {[%clk 0:00:05]} 56. Rc7 {[%clk 0:00:14]}  Kxf4 {[%clk 0:00:04]} 57. Rxf7+ {[%clk 0:00:15]}  Kg4 {[%clk 0:00:04]} 58. Kb6 {[%clk 0:00:14]}  h3 {[%clk 0:00:04]} 59. Kc5 {[%clk 0:00:15]}  h2 {[%clk 0:00:04]} 60. Rh7 {[%clk 0:00:15]}  Kg3 {[%clk 0:00:04]} 61. Kd4 {[%clk 0:00:16]}  Kg2 {[%clk 0:00:04]} 62. Ke4 {[%clk 0:00:16]}  h1=Q {[%clk 0:00:05]} 63. Rxh1 {[%clk 0:00:16]}  Kxh1 {[%clk 0:00:05]} 64. Kf4 {[%clk 0:00:17]}  Kg2 {[%clk 0:00:06]} 65. Kg5 {[%clk 0:00:18]}  Kf2 {[%clk 0:00:07]} 66. Kxg6 {[%clk 0:00:19]} 1/2-1/2


[Site "https://www.chess.com"]

[Event "Titled Tuesday Blitz July 05 Late 2022"]
[White "Ezat, Mohamed"]
[Black "Ladopoulos, Dimitrios"]
[WhiteFideId "10600906"]
[BlackFideId "4239580"]
[WhiteElo "2386"]
[BlackElo "2195"]
[Result "0-1"]
[Round "09"]
[TimeControl "180+1"]
[Date "2022.07.05"]
[WhiteClock "0:00:19"]
[BlackClock "0:00:08"]

1. d4 {[%clk 0:02:53]}  e6 {[%clk 0:02:59]} 2. Nf3 {[%clk 0:02:51]}  f5 {[%clk 0:02:58]} 3. Nc3 {[%clk 0:02:50]}  Bb4 {[%clk 0:02:56]} 4. Bg5 {[%clk 0:02:49]}  Nf6 {[%clk 0:02:57]} 5. Qd3 {[%clk 0:02:46]}  b6 {[%clk 0:02:56]} 6. a3 {[%clk 0:02:45]}  Bxc3+ {[%clk 0:02:56]} 7. Qxc3 {[%clk 0:02:45]}  O-O {[%clk 0:02:53]} 8. e3 {[%clk 0:02:43]}  Bb7 {[%clk 0:02:52]} 9. Be2 {[%clk 0:02:42]}  d6 {[%clk 0:02:50]} 10. O-O {[%clk 0:02:38]}  Nbd7 {[%clk 0:02:50]} 11. Qb3 {[%clk 0:02:35]}  Qe8 {[%clk 0:02:47]} 12. Bxf6 {[%clk 0:02:33]}  Rxf6 {[%clk 0:02:45]} 13. c4 {[%clk 0:02:33]}  Rh6 {[%clk 0:02:43]} 14. d5 {[%clk 0:02:32]}  e5 {[%clk 0:02:42]} 15. Qa4 {[%clk 0:02:24]}  a5 {[%clk 0:02:39]} 16. Ng5 {[%clk 0:02:21]}  Qe7 {[%clk 0:02:05]} 17. Ne6 {[%clk 0:02:15]}  Nf8 {[%clk 0:02:05]} 18. Nxf8 {[%clk 0:02:11]}  Kxf8 {[%clk 0:02:04]} 19. b4 {[%clk 0:02:06]}  axb4 {[%clk 0:01:59]} 20. Qxb4 {[%clk 0:02:05]}  Ra5 {[%clk 0:01:52]} 21. g3 {[%clk 0:02:00]}  Rf6 {[%clk 0:01:37]} 22. Bf3 {[%clk 0:01:58]}  g6 {[%clk 0:01:36]} 23. Bg2 {[%clk 0:01:57]}  Kg7 {[%clk 0:01:35]} 24. f4 {[%clk 0:01:56]}  Rf8 {[%clk 0:01:29]} 25. Qc3 {[%clk 0:01:40]}  Re8 {[%clk 0:01:23]} 26. e4 {[%clk 0:01:39]}  fxe4 {[%clk 0:01:20]} 27. f5 {[%clk 0:01:39]}  gxf5 {[%clk 0:01:03]} 28. Rxf5 {[%clk 0:01:38]}  Rf8 {[%clk 0:01:04]} 29. Rxf8 {[%clk 0:01:37]}  Qxf8 {[%clk 0:01:04]} 30. Rf1 {[%clk 0:01:38]}  Qe7 {[%clk 0:01:04]} 31. Qe3 {[%clk 0:01:35]}  Bc8 {[%clk 0:00:52]} 32. Bxe4 {[%clk 0:01:34]}  Ra8 {[%clk 0:00:46]} 33. h4 {[%clk 0:01:12]}  Bd7 {[%clk 0:00:41]} 34. h5 {[%clk 0:01:11]}  h6 {[%clk 0:00:40]} 35. Kh2 {[%clk 0:00:29]}  Rf8 {[%clk 0:00:32]} 36. Rxf8 {[%clk 0:00:28]}  Qxf8 {[%clk 0:00:33]} 37. g4 {[%clk 0:00:28]}  Bxg4 {[%clk 0:00:20]} 38. a4 {[%clk 0:00:27]}  Qf4+ {[%clk 0:00:20]} 39. Qxf4 {[%clk 0:00:26]}  exf4 {[%clk 0:00:21]} 40. Kg2 {[%clk 0:00:25]}  Bxh5 {[%clk 0:00:18]} 41. Bf3 {[%clk 0:00:24]}  Bxf3+ {[%clk 0:00:15]} 42. Kxf3 {[%clk 0:00:25]}  Kf6 {[%clk 0:00:16]} 43. Kxf4 {[%clk 0:00:26]}  h5 {[%clk 0:00:16]} 44. Ke4 {[%clk 0:00:22]}  Kg5 {[%clk 0:00:13]} 45. c5 {[%clk 0:00:22]}  h4 {[%clk 0:00:07]} 46. cxb6 {[%clk 0:00:20]}  cxb6 {[%clk 0:00:07]} 47. Kd4 {[%clk 0:00:19]}  h3 {[%clk 0:00:07]} 48. Kc4 {[%clk 0:00:20]}  h2 {[%clk 0:00:07]} 49. Kb5 {[%clk 0:00:21]}  h1=Q {[%clk 0:00:08]} 50. Kc6 {[%clk 0:00:21]}  Qa1 {[%clk 0:00:06]} 51. Kxb6 {[%clk 0:00:18]}  Qxa4 {[%clk 0:00:06]} 52. Kc7 {[%clk 0:00:19]}  Qa3 {[%clk 0:00:07]} 53. Kd7 {[%clk 0:00:18]}  Qc5 {[%clk 0:00:08]} 54. Ke6 {[%clk 0:00:19]}  Kf4 {[%clk 0:00:08]} 55. Kf6 {[%clk 0:00:19]}  Ke4 {[%clk 0:00:08]} 0-1


[Site "https://www.chess.com"]

[Event "Titled Tuesday Blitz July 05 Late 2022"]
[White "Gong, Patrick"]
[Black "Barria Santos, Jose Guilherme"]
[WhiteFideId "3222500"]
[BlackFideId "1939300"]
[WhiteElo "2103"]
[BlackElo "2263"]
[Result "1/2-1/2"]
[Round "09"]
[TimeControl "180+1"]
[Date "2022.07.05"]
[WhiteClock "0:00:24"]
[BlackClock "0:00:11"]

1. e4 {[%clk 0:03:00]}  c6 {[%clk 0:02:56]} 2. d4 {[%clk 0:02:59]}  d5 {[%clk 0:02:57]} 3. Nd2 {[%clk 0:02:57]}  dxe4 {[%clk 0:02:57]} 4. Nxe4 {[%clk 0:02:57]}  Nf6 {[%clk 0:02:58]} 5. Nxf6+ {[%clk 0:02:57]}  exf6 {[%clk 0:02:59]} 6. c3 {[%clk 0:02:56]}  Bd6 {[%clk 0:02:59]} 7. Bd3 {[%clk 0:02:56]}  O-O {[%clk 0:03:00]} 8. Qc2 {[%clk 0:02:57]}  Re8+ {[%clk 0:03:01]} 9. Ne2 {[%clk 0:02:57]}  h5 {[%clk 0:03:02]} 10. h3 {[%clk 0:02:53]}  Nd7 {[%clk 0:03:02]} 11. O-O {[%clk 0:02:52]}  Nf8 {[%clk 0:03:01]} 12. Bd2 {[%clk 0:02:49]}  b5 {[%clk 0:02:29]} 13. Rae1 {[%clk 0:02:46]}  Be6 {[%clk 0:02:29]} 14. f4 {[%clk 0:02:44]}  h4 {[%clk 0:02:13]} 15. f5 {[%clk 0:02:42]}  Bd5 {[%clk 0:02:09]} 16. Nf4 {[%clk 0:02:42]}  Bxf4 {[%clk 0:02:10]} 17. Rxf4 {[%clk 0:02:31]}  Rxe1+ {[%clk 0:02:06]} 18. Bxe1 {[%clk 0:02:31]}  Qd6 {[%clk 0:02:06]} 19. Rxh4 {[%clk 0:02:25]}  Re8 {[%clk 0:02:06]} 20. Bf2 {[%clk 0:02:23]}  Nh7 {[%clk 0:01:59]} 21. Qd1 {[%clk 0:02:18]}  Ng5 {[%clk 0:01:23]} 22. Qh5 {[%clk 0:01:57]}  Kf8 {[%clk 0:01:23]} 23. Qh8+ {[%clk 0:01:57]}  Ke7 {[%clk 0:01:24]} 24. Qxg7 {[%clk 0:01:58]}  Qb8 {[%clk 0:01:24]} 25. Rh6 {[%clk 0:01:52]}  Qd6 {[%clk 0:01:22]} 26. Bh4 {[%clk 0:01:49]}  Qf4 {[%clk 0:00:57]} 27. Qxf6+ {[%clk 0:01:47]}  Kd7 {[%clk 0:00:57]} 28. Qd6+ {[%clk 0:01:22]}  Qxd6 {[%clk 0:00:55]} 29. Rxd6+ {[%clk 0:01:23]}  Kxd6 {[%clk 0:00:55]} 30. Bxg5 {[%clk 0:01:24]}  Be4 {[%clk 0:00:43]} 31. Bxe4 {[%clk 0:01:17]}  Rxe4 {[%clk 0:00:42]} 32. Kf2 {[%clk 0:01:17]}  f6 {[%clk 0:00:36]} 33. Be3 {[%clk 0:01:15]}  Kd5 {[%clk 0:00:32]} 34. g4 {[%clk 0:01:14]}  Re8 {[%clk 0:00:32]} 35. h4 {[%clk 0:01:14]}  Ke4 {[%clk 0:00:30]} 36. h5 {[%clk 0:01:08]}  Rg8 {[%clk 0:00:28]} 37. g5 {[%clk 0:01:02]}  fxg5 {[%clk 0:00:28]} 38. f6 {[%clk 0:00:59]}  Kf5 {[%clk 0:00:26]} 39. Kg3 {[%clk 0:00:49]}  Rf8 {[%clk 0:00:20]} 40. d5 {[%clk 0:00:47]}  Rxf6 {[%clk 0:00:18]} 41. dxc6 {[%clk 0:00:39]}  Rxc6 {[%clk 0:00:19]} 42. Bxa7 {[%clk 0:00:35]}  Rh6 {[%clk 0:00:19]} 43. b3 {[%clk 0:00:29]}  Rxh5 {[%clk 0:00:19]} 44. a4 {[%clk 0:00:29]}  bxa4 {[%clk 0:00:19]} 45. bxa4 {[%clk 0:00:30]}  g4 {[%clk 0:00:16]} 46. Bd4 {[%clk 0:00:27]}  Rh3+ {[%clk 0:00:15]} 47. Kg2 {[%clk 0:00:27]}  Ke4 {[%clk 0:00:12]} 48. a5 {[%clk 0:00:27]}  Rh6 {[%clk 0:00:11]} 49. Bb6 {[%clk 0:00:26]}  Rh3 {[%clk 0:00:06]} 50. Bd4 {[%clk 0:00:25]}  Kd5 {[%clk 0:00:05]} 51. a6 {[%clk 0:00:24]}  Kc6 {[%clk 0:00:06]} 52. a7 {[%clk 0:00:20]}  Kb7 {[%clk 0:00:06]} 53. Kf2 {[%clk 0:00:18]}  Rd3 {[%clk 0:00:05]} 54. Kg2 {[%clk 0:00:18]}  Rf3 {[%clk 0:00:05]} 55. Kh2 {[%clk 0:00:18]}  Rf5 {[%clk 0:00:04]} 56. Kg3 {[%clk 0:00:18]}  Rg5 {[%clk 0:00:04]} 57. Kf4 {[%clk 0:00:18]}  Rg8 {[%clk 0:00:04]} 58. Kg3 {[%clk 0:00:19]}  Ka8 {[%clk 0:00:05]} 59. Bb6 {[%clk 0:00:18]}  Rg6 {[%clk 0:00:05]} 60. Bd4 {[%clk 0:00:18]}  Kb7 {[%clk 0:00:05]} 61. Bc5 {[%clk 0:00:18]}  Rg5 {[%clk 0:00:05]} 62. Bd4 {[%clk 0:00:19]}  Rg6 {[%clk 0:00:06]} 63. Be3 {[%clk 0:00:19]}  Rg7 {[%clk 0:00:05]} 64. Bd4 {[%clk 0:00:20]}  Rg8 {[%clk 0:00:06]} 65. Kg2 {[%clk 0:00:18]}  Re8 {[%clk 0:00:05]} 66. Kg3 {[%clk 0:00:18]}  Re4 {[%clk 0:00:06]} 67. Kg2 {[%clk 0:00:18]}  Re8 {[%clk 0:00:06]} 68. Kg3 {[%clk 0:00:19]}  Rg8 {[%clk 0:00:07]} 69. Kg2 {[%clk 0:00:19]}  Kc6 {[%clk 0:00:07]} 70. Kg3 {[%clk 0:00:20]}  Kd5 {[%clk 0:00:08]} 71. Be3 {[%clk 0:00:19]}  Ke4 {[%clk 0:00:08]} 72. Bf4 {[%clk 0:00:20]}  Ra8 {[%clk 0:00:07]} 73. Bb8 {[%clk 0:00:20]}  Kd3 {[%clk 0:00:07]} 74. Kxg4 {[%clk 0:00:20]}  Kxc3 {[%clk 0:00:08]} 75. Kf5 {[%clk 0:00:21]}  Kc4 {[%clk 0:00:09]} 76. Ke6 {[%clk 0:00:22]}  Kb5 {[%clk 0:00:09]} 77. Kd7 {[%clk 0:00:23]}  Ka6 {[%clk 0:00:10]} 78. Kc7 {[%clk 0:00:24]}  Rxa7+ {[%clk 0:00:11]} 79. Bxa7 {[%clk 0:00:24]} 1/2-1/2


[Site "https://www.chess.com"]

[Event "Titled Tuesday Blitz July 05 Late 2022"]
[White "Halkias, Stelios"]
[Black "Fedoseev, Vladimir"]
[WhiteFideId "4201809"]
[BlackFideId "24130737"]
[WhiteElo "2453"]
[BlackElo "2726"]
[Result "0-1"]
[Round "09"]
[TimeControl "180+1"]
[Date "2022.07.05"]
[WhiteClock "0:00:01"]
[BlackClock "0:00:14"]

1. Nf3 {[%clk 0:03:00]}  d5 {[%clk 0:02:58]} 2. d4 {[%clk 0:03:00]}  Nf6 {[%clk 0:02:57]} 3. c4 {[%clk 0:03:00]}  e6 {[%clk 0:02:57]} 4. g3 {[%clk 0:03:00]}  Bb4+ {[%clk 0:02:55]} 5. Nbd2 {[%clk 0:02:59]}  dxc4 {[%clk 0:02:51]} 6. a3 {[%clk 0:02:58]}  Bxd2+ {[%clk 0:02:48]} 7. Bxd2 {[%clk 0:02:58]}  Bd7 {[%clk 0:02:44]} 8. e3 {[%clk 0:02:57]}  Bc6 {[%clk 0:02:33]} 9. Bxc4 {[%clk 0:02:52]}  Nbd7 {[%clk 0:02:31]} 10. O-O {[%clk 0:02:49]}  O-O {[%clk 0:02:29]} 11. Be2 {[%clk 0:02:41]}  Re8 {[%clk 0:02:21]} 12. Rc1 {[%clk 0:02:40]}  Bd5 {[%clk 0:02:16]} 13. Bc3 {[%clk 0:02:29]}  Ne4 {[%clk 0:02:07]} 14. Nd2 {[%clk 0:02:29]}  Nxc3 {[%clk 0:02:00]} 15. bxc3 {[%clk 0:02:17]}  c5 {[%clk 0:01:44]} 16. e4 {[%clk 0:02:00]}  Bc6 {[%clk 0:01:43]} 17. f3 {[%clk 0:01:58]}  Qe7 {[%clk 0:01:38]} 18. Qb3 {[%clk 0:01:54]}  Rad8 {[%clk 0:01:35]} 19. Nc4 {[%clk 0:01:47]}  b6 {[%clk 0:01:25]} 20. Rfd1 {[%clk 0:01:45]}  Kf8 {[%clk 0:01:14]} 21. Qb2 {[%clk 0:01:38]}  Rc8 {[%clk 0:01:07]} 22. Bf1 {[%clk 0:01:24]}  Ba4 {[%clk 0:01:04]} 23. Rd2 {[%clk 0:01:20]}  Red8 {[%clk 0:01:03]} 24. d5 {[%clk 0:01:12]}  exd5 {[%clk 0:00:59]} 25. exd5 {[%clk 0:01:12]}  b5 {[%clk 0:00:46]} 26. Na5 {[%clk 0:00:32]}  Qe3+ {[%clk 0:00:45]} 27. Rf2 {[%clk 0:00:20]}  Ne5 {[%clk 0:00:45]} 28. Kg2 {[%clk 0:00:20]}  Rxd5 {[%clk 0:00:31]} 29. c4 {[%clk 0:00:20]}  Rd1 {[%clk 0:00:20]} 30. Rc3 {[%clk 0:00:15]}  Qd4 {[%clk 0:00:19]} 31. cxb5 {[%clk 0:00:13]}  Rd8 {[%clk 0:00:18]} 32. Nb7 {[%clk 0:00:09]}  Rd5 {[%clk 0:00:17]} 33. b6 {[%clk 0:00:08]}  axb6 {[%clk 0:00:16]} 34. Re2 {[%clk 0:00:02]}  Bc6 {[%clk 0:00:14]} 35. Na5 {[%clk 0:00:01]}  bxa5 {[%clk 0:00:14]} 36. Qb8+ {[%clk 0:00:01]}  Ke7 {[%clk 0:00:14]} 0-1


[Site "https://www.chess.com"]